fUSD/lending_fUSD_20250814
["ID","MTS","AMOUNT","RATE_DAILY","PERIOD"]
[379141541,1755161432719,-9999.99,0.00027397,2]
[379141542,1755161432729,-329.93,0.00027547,2]
[379141543,1755161432738,-170.0,0.00027548,7]
[379141544,1755161432747,-587.0,0.00027738,2]
[379141545,1755161432756,-171.52,0.00028088,2]
[379141546,1755161432766,-174.07113289,0.00028103,2]
[379141547,1755161432776,-4136.10497165,0.00028273,2]
[379141548,1755161432786,-10163.29199442,0.00028368,2]
[379141611,1755161438613,-163.54049316,0.00027269,2]
[379141613,1755161438623,-500.0,0.00027269,2]
[379141615,1755161438632,-534.35660016,0.00027269,2]
[379141617,1755161438642,-500.0,0.00027397,2]
[379141618,1755161438652,-500.0,0.00027397,2]
[379141621,1755161438662,-500.0,0.00027397,2]
[379141622,1755161438671,-500.0,0.00027397,2]
[379141625,1755161438681,-500.0,0.00027397,2]
[379141627,1755161438691,-216.73193631,0.00027397,2]
[379141629,1755161438701,-1124.79572264,0.00028368,2]
[379141653,1755161438917,-489.54914957,0.00028368,2]
[379141656,1755161438936,-511.6646284,0.00028368,2]
[379141711,1755161439941,-85776.19017653,0.00028368,2]
[379141713,1755161439951,-500.0,0.00028373,5]
[379141715,1755161439960,-500.0,0.00028373,5]
[379141717,1755161439969,-159.9005842,0.00028373,2]
[379141719,1755161439978,-500.0,0.00028373,5]
[379141721,1755161439987,-639.39,0.00028463,2]
[379141723,1755161439997,-639.39,0.00028478,2]
[379141725,1755161440006,-639.39,0.00028493,2]
[379141727,1755161440015,-594.48201755,0.00028495,16]
[379141729,1755161440025,-639.39,0.00028508,2]
[379141731,1755161440038,-639.39,0.00028523,2]
[379141733,1755161440047,-639.39,0.00028538,2]
[379141735,1755161440056,-639.39,0.00028553,2]
[379141737,1755161440066,-639.39,0.00028568,2]
[379141739,1755161440075,-500.0,0.00028573,5]
[379141740,1755161440084,-500.45598926,0.00028573,5]
[379141742,1755161440093,-500.0,0.00028573,5]
[379141744,1755161440103,-500.0,0.00028573,5]
[379141747,1755161440114,-300.0,0.00028573,5]
[379141749,1755161440124,-639.39,0.00028583,2]
[379141751,1755161440133,-45679.42,0.00028595,7]
[379141752,1755161440142,-458.13769775,0.00028595,7]
[379141753,1755161440151,-639.39,0.00028598,2]
[379141754,1755161440160,-639.39,0.00028613,2]
[379141755,1755161440170,-639.39,0.00028628,2]
[379141756,1755161440179,-639.39,0.00028643,2]
[379141757,1755161440189,-639.39,0.00028658,2]
[379141758,1755161440198,-639.39,0.00028673,2]
[379141759,1755161440209,-639.39,0.00028688,2]
[379141760,1755161440219,-639.39,0.00028703,2]
[379141761,1755161440229,-639.39,0.00028718,2]
[379141762,1755161440238,-639.39,0.00028733,2]
[379141763,1755161440248,-639.39,0.00028748,2]
[379141764,1755161440258,-514.66,0.00028767,2]
[379141765,1755161440267,-329.93,0.00028859,2]
[379141766,1755161440277,-1000.0,0.00029121,5]
[379141767,1755161440286,-1000.0,0.00029121,5]
[379141768,1755161440295,-353.77156043,0.0002915,5]
[379141769,1755161440305,-501.31328798,0.0002915,5]
[379141770,1755161440315,-516.38800282,0.0002915,5]
[379141771,1755161440326,-500.0,0.0002915,5]
[379141772,1755161440338,-348.82562581,0.0002915,5]
[379141773,1755161440348,-160.21,0.00029245,2]
[379141774,1755161440359,-403.09,0.00029272,30]
[379141775,1755161440369,-589.6,0.00029382,2]
[379141776,1755161440753,-4136.10497163,0.00029562,2]
[379141777,1755161440777,-171.52,0.00029633,2]
[379141778,1755161440788,-249.01919163,0.00029668,5]
[379141779,1755161440797,-1500.0,0.00029668,5]
[379141780,1755161440806,-1225.38691249,0.00029673,2]
[379141781,1755161440816,-73916.72975837,0.00029765,2]
[379141782,1755161440825,-500.0,0.00029773,5]
[379141783,1755161440833,-567.814298,0.0003,7]
[379141784,1755161440843,-567.814298,0.0003,7]
[379141785,1755161440851,-1523.003873,0.0003,7]
[379141786,1755161440860,-1523.003873,0.0003,7]
[379141787,1755161440869,-160.77199524,0.0003,5]
[379141788,1755161440880,-366.560912,0.0003,7]
[379141789,1755161440889,-366.560912,0.0003,7]
[379141790,1755161440898,-823.0,0.00030093,2]
[379141791,1755161440909,-5969.11384537,0.00030126,3]
[379141792,1755161440919,-514.66,0.00030136,2]
[379141793,1755161440927,-208.38,0.00030137,30]
[379141794,1755161440937,-329.93,0.00030171,2]
[379141795,1755161440946,-2000.0,0.00030216,5]
[379141796,1755161440955,-5969.11384537,0.00030645,3]
[379141797,1755161440964,-458.13769775,0.00030645,3]
[379141798,1755161440973,-1047.31,0.00030654,120]
[379141799,1755161440984,-8983.93929785,0.00030655,2]
[379141800,1755161440993,-523.0,0.00030661,5]
[379141801,1755161441002,-1572.19647559,0.00030764,5]
[379141802,1755161441011,-1225.38691245,0.00030807,2]
[379141803,1755161441022,-4136.10497163,0.00030852,2]
[379141804,1755161441034,-500.0,0.0003105,5]
[379141805,1755161441045,-500.0,0.0003105,5]
[379141806,1755161441053,-500.0,0.0003105,5]
[379141807,1755161441063,-500.0,0.0003105,5]
[379141808,1755161441073,-171.52,0.00031179,2]
[379141809,1755161441085,-5969.11384537,0.00031292,3]
[379141810,1755161441095,-11938.2276907,0.00031303,3]
[379141811,1755161441106,-211.86673127,0.00031303,3]
[379141812,1755161441115,-27437.85312105,0.00031313,2]
[379141813,1755161441125,-5969.11384537,0.00031347,3]
[379141814,1755161441134,-208.38,0.00031366,30]
[379141815,1755161441145,-5511.0,0.000314,5]
[379141816,1755161441154,-329.93,0.00031483,2]
[379141817,1755161441165,-514.66,0.00031506,2]
[379141818,1755161441175,-1225.38691245,0.00031941,2]
[379141819,1755161441184,-4136.10497163,0.00032141,2]
[379141820,1755161441193,-208.38,0.00032597,30]
[379141821,1755161441203,-211.86673127,0.00032639,2]
[379141822,1755161441214,-1152.0,0.00032649,2]
[379141823,1755161441224,-171.52,0.00032724,2]
[379141824,1755161441233,-5969.11384537,0.00032775,3]
[379141825,1755161441244,-2521.176,0.00032785,33]
[379141826,1755161441255,-175.474,0.00032785,33]
[379141827,1755161441264,-514.66,0.00032876,2]
[379141828,1755161441273,-400.0,0.00032877,7]
[379141829,1755161441283,-1225.38691245,0.00033075,2]
[379141830,1755161441292,-251.71,0.00033165,2]
[379141831,1755161441302,-4136.10497163,0.00033431,2]
[379141832,1755161441312,-6321.1070151,0.000335,2]
[379141833,1755161441322,-5969.11384537,0.0003378,3]
[379141834,1755161441331,-208.38,0.00033827,30]
[379141835,1755161441340,-166.45,0.00033889,2]
[379141836,1755161441349,-200.0,0.00034,30]
[379141837,1755161441358,-1047.31,0.00034059,120]
[379141838,1755161441369,-523.0,0.00034185,9]
[379141839,1755161441379,-514.66,0.00034246,2]
[379141840,1755161441391,-589.6,0.00034325,5]
[379141841,1755161441400,-4136.10497163,0.0003472,2]
[379141842,1755161441410,-5969.11384537,0.00034774,3]
[379141843,1755161441419,-1000.0,0.00034888,2]
[379141844,1755161441428,-5969.11384537,0.0003499,3]
[379141845,1755161441437,-500.0,0.00035,2]
[379141846,1755161441447,-445.0,0.00035,4]
[379141847,1755161441456,-500.0,0.00035,4]
[379141848,1755161441465,-150.0,0.00035,4]
[379141849,1755161441474,-151.00081713,0.00035,4]
[379141850,1755161441485,-500.0,0.00035,2]
[379141851,1755161441494,-500.0,0.00035,4]
[379141852,1755161441503,-150.0,0.00035,4]
[379141853,1755161441512,-150.0,0.00035,4]
[379141854,1755161441521,-150.0,0.00035,4]
[379141855,1755161441531,-150.0,0.00035,4]
[379141856,1755161441541,-500.0,0.00035,4]
[379141857,1755161441550,-150.0,0.00035,4]
[379141858,1755161441560,-150.0,0.00035,4]
[379141859,1755161441569,-150.0,0.00035,4]
[379141860,1755161441579,-150.0,0.00035,4]
[379141861,1755161441588,-150.0,0.00035,4]
[379141862,1755161441597,-157.35261315,0.00035,4]
[379141863,1755161441607,-150.0,0.00035,4]
[379141864,1755161441616,-500.0,0.00035,4]
[379141865,1755161441626,-150.0,0.00035,4]
[379141866,1755161441635,-500.0,0.00035,4]
[379141867,1755161441644,-500.0,0.00035,4]
[379141868,1755161441654,-150.0,0.00035,4]
[379141869,1755161441662,-250.0,0.00035,4]
[379141870,1755161441671,-150.0,0.00035,4]
[379141871,1755161441680,-500.0,0.00035,4]
[379141872,1755161441690,-150.0,0.00035,2]
[379141873,1755161441699,-500.0,0.00035,4]
[379141874,1755161441709,-150.0,0.00035,2]
[379141875,1755161441718,-493.0,0.00035,4]
[379141876,1755161441727,-760.0,0.00035,4]
[379141877,1755161441737,-208.38,0.00035057,60]
[379141878,1755161441746,-1632.69,0.00035063,2]
[379141879,1755161441755,-500.0,0.00035274,2]
[379141880,1755161441765,-445.0,0.00035274,4]
[379141881,1755161441774,-506.93320905,0.00035274,4]
[379141882,1755161441783,-150.0,0.00035274,4]
[379141883,1755161441792,-500.0,0.00035274,2]
[379141884,1755161441801,-500.0,0.00035274,4]
[379141885,1755161441811,-150.0,0.00035274,4]
[379141886,1755161441820,-150.0,0.00035274,4]
[379141887,1755161441830,-500.0,0.00035274,4]
[379141888,1755161441839,-150.0,0.00035274,4]
[379141889,1755161441849,-150.0,0.00035274,4]
[379141890,1755161441858,-150.0,0.00035274,4]
[379141891,1755161441867,-150.0,0.00035274,4]
[379141892,1755161441876,-150.0,0.00035274,4]
[379141893,1755161441886,-150.0,0.00035274,4]
[379141894,1755161441894,-500.0,0.00035274,4]
[379141895,1755161441902,-150.0,0.00035274,4]
[379141896,1755161441910,-500.0,0.00035274,4]
[379141897,1755161441917,-500.0,0.00035274,4]
[379141898,1755161441925,-175.74145264,0.00035274,4]
[379141899,1755161441932,-150.0,0.00035274,4]
[379141900,1755161441940,-500.0,0.00035274,4]
[379141901,1755161441947,-500.0,0.00035274,4]
[379141902,1755161441956,-493.0,0.00035274,4]
[379141903,1755161441966,-760.0,0.00035274,4]
[379141904,1755161441975,-1561.0,0.00035422,2]
[379141905,1755161441985,-403.09,0.00035496,30]
[379141906,1755161441994,-5969.11384537,0.00035538,3]
[379141907,1755161442003,-500.0,0.00035548,2]
[379141908,1755161442012,-445.0,0.00035548,4]
[379141909,1755161442021,-150.0,0.00035548,4]
[379141910,1755161442033,-500.0,0.00035548,2]
[379141911,1755161442043,-500.0,0.00035548,4]
[379141912,1755161442052,-200.0,0.00035548,4]
[379141913,1755161442061,-200.0,0.00035548,4]
[379141914,1755161442071,-567.78595225,0.00035548,4]
[379141915,1755161442080,-150.0,0.00035548,4]
[379141916,1755161442089,-150.0,0.00035548,4]
[379141917,1755161442098,-150.0,0.00035548,4]
[379141918,1755161442107,-156.3569435,0.00035548,4]
[379141919,1755161442117,-200.0,0.00035548,4]
[379141920,1755161442126,-206.95574164,0.00035548,4]
[379141921,1755161442135,-500.0,0.00035548,4]
[379141922,1755161442144,-173.67624752,0.00035548,4]
[379141923,1755161442153,-302.14017338,0.00035548,4]
[379141924,1755161442162,-500.0,0.00035548,4]
[379141925,1755161442171,-200.0,0.00035548,4]
[379141926,1755161442181,-500.0,0.00035548,4]
[379141927,1755161442190,-500.0,0.00035548,4]
[379141928,1755161442199,-493.0,0.00035548,4]
[379141929,1755161442208,-760.0,0.00035548,4]
[379141930,1755161442217,-514.66,0.00035616,2]
[379141931,1755161442226,-500.0,0.00035822,2]
[379141932,1755161442235,-445.0,0.00035822,4]
[379141933,1755161442244,-150.0,0.00035822,4]
[379141934,1755161442253,-500.0,0.00035822,2]
[379141935,1755161442262,-556.0,0.00035822,4]
[379141936,1755161442271,-150.0,0.00035822,4]
[379141937,1755161442280,-150.0,0.00035822,4]
[379141938,1755161442290,-500.0,0.00035822,4]
[379141939,1755161442299,-500.0,0.00035822,4]
[379141940,1755161442308,-500.0,0.00035822,4]
[379141941,1755161442318,-500.0,0.00035822,4]
[379141942,1755161442327,-493.0,0.00035822,4]
[379141943,1755161442336,-760.0,0.00035822,4]
[379141944,1755161442345,-4136.10497163,0.0003601,2]
[379141945,1755161442354,-5969.11384537,0.00036086,3]
[379141946,1755161442363,-500.0,0.00036096,2]
[379141947,1755161442373,-445.0,0.00036096,4]
[379141948,1755161442382,-150.0,0.00036096,4]
[379141949,1755161442391,-500.0,0.00036096,2]
[379141950,1755161442400,-150.0,0.00036096,4]
[379141951,1755161442409,-150.0,0.00036096,4]
[379141952,1755161442418,-500.0,0.00036096,4]
[379141953,1755161442428,-405.6609987,0.00036096,4]
[379141954,1755161442437,-500.0,0.00036096,4]
[379141955,1755161442446,-500.0,0.00036096,4]
[379141956,1755161442455,-493.0,0.00036096,4]
[379141957,1755161442465,-760.0,0.00036096,4]
[379141958,1755161442475,-2599.07,0.00036171,2]
[379141959,1755161442484,-208.38,0.00036287,60]
[379141960,1755161442494,-5969.11384537,0.0003636,4]
[379141962,1755161442503,-500.0,0.0003637,2]
[379141963,1755161442512,-445.0,0.0003637,4]
[379141964,1755161442522,-202.98103863,0.0003637,4]
[379141965,1755161442531,-500.0,0.0003637,2]
[379141966,1755161442540,-250.0,0.0003637,4]
[379141967,1755161442549,-209.84652961,0.0003637,4]
[379141968,1755161442558,-500.0,0.0003637,4]
[379141969,1755161442569,-500.0,0.0003637,4]
[379141970,1755161442579,-500.0,0.0003637,4]
[379141971,1755161442589,-493.0,0.0003637,4]
[379141972,1755161442598,-760.0,0.0003637,4]
[379141973,1755161442607,-1239.09,0.00036383,2]
[379141974,1755161442616,-203.05,0.00036444,2]
[379141975,1755161442625,-200.0,0.00036444,2]
[379141976,1755161442634,-500.0,0.00036644,2]
[379141977,1755161442643,-445.0,0.00036644,4]
[379141978,1755161442652,-500.0,0.00036644,2]
[379141979,1755161442662,-500.0,0.00036644,4]
[379141980,1755161442671,-500.0,0.00036644,4]
[379141981,1755161442681,-500.0,0.00036644,4]
[379141982,1755161442691,-493.0,0.00036644,4]
[379141983,1755161442700,-760.0,0.00036644,4]
[379141984,1755161442709,-150.0,0.00036726,2]
[379141985,1755161442718,-274.20864274,0.00036893,2]
[379141986,1755161442727,-445.0,0.00036918,4]
[379141987,1755161442737,-500.0,0.00036918,2]
[379141988,1755161442746,-266.70854048,0.00036918,4]
[379141989,1755161442755,-500.0,0.00036918,4]
[379141990,1755161442764,-500.0,0.00036918,4]
[379141991,1755161442778,-493.0,0.00036918,4]
[379141992,1755161442787,-760.0,0.00036918,4]
[379141993,1755161442797,-514.66,0.00036986,2]
[379141994,1755161442807,-321.60272914,0.00037061,2]
[379141995,1755161442817,-445.0,0.00037192,4]
[379141996,1755161442826,-500.0,0.00037192,2]
[379141997,1755161442835,-500.0,0.00037192,4]
[379141998,1755161442845,-500.0,0.00037192,4]
[379141999,1755161442855,-493.0,0.00037192,4]
[379142000,1755161442864,-760.0,0.00037192,4]
[379142001,1755161442874,-368.99681554,0.00037229,2]
[379142002,1755161442884,-4136.10497163,0.00037299,2]
[379142003,1755161442893,-5969.11384537,0.0003739,4]
[379142004,1755161442902,-416.39090194,0.00037396,2]
[379142005,1755161442910,-1047.31,0.00037465,120]
[379142006,1755161442919,-445.0,0.00037466,4]
[379142007,1755161442928,-500.0,0.00037466,2]
[379142008,1755161442938,-500.0,0.00037466,4]
[379142009,1755161442947,-452.76110905,0.00037466,4]
[379142010,1755161442957,-493.0,0.00037466,4]
[379142011,1755161442966,-760.0,0.00037466,4]
[379142012,1755161442975,-208.38,0.00037517,60]
[379142013,1755161442985,-463.78498834,0.00037564,2]
[379142014,1755161442997,-523.0,0.0003771,13]
[379142015,1755161443007,-511.17907474,0.00037731,2]
[379142016,1755161443017,-445.0,0.0003774,4]
[379142017,1755161443027,-500.0,0.0003774,2]
[379142018,1755161443043,-500.0,0.0003774,4]
[379142019,1755161443053,-493.0,0.0003774,4]
[379142020,1755161443062,-760.0,0.0003774,4]
[379142022,1755161443072,-17907.3415361,0.00037785,4]
[379142024,1755161443081,-23876.4553815,0.00037794,4]
[379142026,1755161443090,-17399.8303024,0.00037794,4]
[379142028,1755161443099,-558.57316114,0.00037899,2]
[379142029,1755161443110,-5799.94343414,0.00037947,4]
[379142030,1755161443120,-5969.11384537,0.0003799,4]
[379142032,1755161443129,-1217.57586531,0.00038,120]
[379142034,1755161443139,-445.0,0.00038014,4]
[379142036,1755161443148,-500.0,0.00038014,2]
[379142038,1755161443157,-500.0,0.00038014,4]
[379142039,1755161443166,-493.0,0.00038014,4]
[379142040,1755161443175,-760.0,0.00038014,4]
[379142042,1755161443184,-605.96724755,0.00038066,2]
[379142043,1755161443193,-5799.94343414,0.00038115,4]
[379142044,1755161443202,-653.36133395,0.00038234,2]
[379142045,1755161443211,-445.0,0.00038288,4]
[379142046,1755161443220,-500.0,0.00038288,2]
[379142047,1755161443229,-500.0,0.00038288,4]
[379142048,1755161443238,-493.0,0.00038288,4]
[379142049,1755161443248,-760.0,0.00038288,4]
[379142050,1755161443257,-514.66,0.00038356,2]
[379142051,1755161443266,-273.64706425,0.00038356,2]
[379142052,1755161443276,-5969.11384537,0.0003838,4]
[379142053,1755161443285,-2000.0,0.000384,2]
[379142054,1755161443295,-700.75542035,0.00038401,2]
[379142055,1755161443305,-168.0,0.0003844,2]
[379142056,1755161443315,-5799.94343414,0.0003845,4]
[379142057,1755161443324,-445.0,0.00038562,4]
[379142058,1755161443333,-500.0,0.00038562,2]
[379142059,1755161443343,-500.0,0.00038562,4]
[379142060,1755161443352,-493.0,0.00038562,4]
[379142061,1755161443361,-760.0,0.00038562,4]
[379142062,1755161443371,-748.14950675,0.00038569,2]
[379142063,1755161443380,-4136.10497163,0.00038589,2]
[379142064,1755161443389,-1092.09562474,0.00038611,2]
[379142065,1755161443398,-5799.94343414,0.00038637,4]
[379142066,1755161443408,-5969.11384537,0.00038647,4]
[379142067,1755161443417,-5113.41,0.00038657,120]
[379142068,1755161443427,-2295.65915868,0.00038677,120]
[379142069,1755161443437,-168.0,0.00038691,2]
[379142070,1755161443447,-5799.94343414,0.00038692,4]
[379142071,1755161443456,-329.05909186,0.000387,5]
[379142072,1755161443465,-5969.11384537,0.00038702,4]
[379142073,1755161443475,-5799.94343414,0.0003871,4]
[379142074,1755161443484,-1092.09562474,0.00038711,2]
[379142075,1755161443494,-5113.41,0.00038712,120]
[379142076,1755161443504,-4728.88,0.0003872,30]
[379142077,1755161443514,-795.54359315,0.00038737,2]
[379142078,1755161443523,-208.38,0.00038748,60]
[379142079,1755161443532,-5969.11384537,0.00038757,4]
[379142080,1755161443542,-5799.94343414,0.00038757,4]
[379142081,1755161443551,-5113.41,0.00038767,120]
[379142082,1755161443560,-1092.09562474,0.00038811,2]
[379142083,1755161443569,-168.0,0.00038813,2]
[379142084,1755161443579,-5799.94343414,0.00038815,4]
[379142085,1755161443588,-5113.41,0.00038821,120]
[379142086,1755161443597,-5969.11384537,0.00038826,4]
[379142087,1755161443605,-638.0,0.00038831,120]
[379142088,1755161443615,-445.0,0.00038836,4]
[379142089,1755161443624,-500.0,0.00038836,2]
[379142090,1755161443633,-500.0,0.00038836,4]
[379142091,1755161443643,-493.0,0.00038836,4]
[379142092,1755161443652,-760.0,0.00038836,4]
[379142093,1755161443662,-5113.41,0.00038876,120]
[379142094,1755161443671,-291.9208,0.00038888,30]
[379142095,1755161443680,-842.93767955,0.00038904,2]
[379142096,1755161443689,-5799.94343414,0.00038911,4]
[379142097,1755161443699,-1092.09562474,0.00038911,2]
[379142098,1755161443709,-5969.11384537,0.00038921,4]
[379142099,1755161443718,-5113.41,0.00038931,120]
[379142100,1755161443728,-5799.94343414,0.00038954,4]
[379142101,1755161443737,-150.0,0.00038971,120]
[379142102,1755161443747,-5969.11384537,0.0003898,4]
[379142103,1755161443766,-5113.41,0.00038986,120]
[379142104,1755161443784,-5799.94343414,0.0003899,4]
[379142105,1755161443797,-1092.09562474,0.00039011,2]
[379142106,1755161443813,-5113.41,0.00039041,120]
[379142107,1755161443827,-890.33176595,0.00039072,2]
[379142108,1755161443843,-5799.94343414,0.00039075,4]
[379142109,1755161443858,-5969.11384537,0.00039085,4]
[379142110,1755161443871,-5113.41,0.00039095,120]
[379142111,1755161443885,-638.0,0.00039109,7]
[379142112,1755161443901,-445.0,0.0003911,4]
[379142113,1755161443915,-500.0,0.0003911,2]
[379142114,1755161443930,-500.0,0.0003911,4]
[379142115,1755161443943,-493.0,0.0003911,4]
[379142116,1755161443959,-760.0,0.0003911,4]
[379142117,1755161443973,-1092.09562474,0.00039111,2]
[379142118,1755161443989,-5799.94343414,0.00039122,4]
[379142119,1755161444003,-5969.11384537,0.0003914,4]
[379142120,1755161444017,-5113.41,0.0003915,120]
[379142121,1755161444031,-5799.94343414,0.00039168,4]
[379142122,1755161444046,-567.814298,0.00039178,30]
[379142123,1755161444059,-567.814298,0.00039178,30]
[379142124,1755161444075,-150.36249922,0.00039178,30]
[379142125,1755161444087,-1000.0,0.00039178,120]
[379142126,1755161444098,-1000.0,0.00039178,120]
[379142127,1755161444114,-1000.0,0.00039178,120]
[379142128,1755161444127,-151.83188783,0.00039178,120]
[379142129,1755161444139,-5969.11384537,0.00039195,4]
[379142130,1755161444152,-5799.94343414,0.00039195,4]
[379142131,1755161444164,-5113.41,0.00039205,120]
[379142132,1755161444176,-1092.09562474,0.00039211,2]
[379142133,1755161444189,-937.72585235,0.00039239,2]
[379142134,1755161444202,-5799.94343414,0.0003924,4]
[379142135,1755161444215,-1523.003873,0.00039242,30]
[379142136,1755161444233,-1523.003873,0.00039242,30]
[379142137,1755161444261,-366.560912,0.00039242,30]
[379142138,1755161444274,-366.560912,0.00039242,30]
[379142139,1755161444286,-1000.0,0.00039249,2]
[379142140,1755161444299,-5969.11384537,0.0003925,4]
[379142141,1755161444311,-5113.41,0.0003926,120]
[379142142,1755161444324,-589.6,0.00039267,7]
[379142143,1755161444337,-4000.0,0.0003928,4]
[379142144,1755161444349,-5799.94343414,0.00039295,4]
[379142145,1755161444362,-168.0,0.00039295,7]
[379142146,1755161444374,-5969.11384537,0.00039305,4]
[379142147,1755161444388,-1092.09562474,0.00039311,2]
[379142148,1755161444400,-5113.41,0.00039315,120]
[379142149,1755161444413,-4000.0,0.00039352,4]
[379142150,1755161444425,-5799.94343414,0.00039359,4]
[379142151,1755161444438,-5113.41,0.00039369,120]
[379142152,1755161444451,-445.0,0.00039384,4]
[379142153,1755161444465,-500.0,0.00039384,2]
[379142154,1755161444479,-500.0,0.00039384,4]
[379142155,1755161444492,-493.0,0.00039384,4]
[379142156,1755161444505,-760.0,0.00039384,4]
[379142157,1755161444517,-5799.94343414,0.00039392,4]
[379142158,1755161444531,-5969.11384537,0.00039402,4]
[379142159,1755161444543,-985.11993875,0.00039407,2]
[379142160,1755161444557,-1092.09562474,0.00039411,2]
[379142161,1755161444569,-4000.0,0.00039424,4]
[379142162,1755161444582,-5113.41,0.00039424,120]
[379142163,1755161444595,-500.0,0.00039425,2]
[379142164,1755161444607,-5799.94343414,0.00039469,4]
[379142165,1755161444621,-5113.41,0.00039479,120]
[379142166,1755161444633,-4000.0,0.00039496,4]
[379142167,1755161444646,-5969.11384537,0.00039524,4]
[379142168,1755161444658,-5799.94343414,0.00039524,4]
[379142169,1755161444670,-5113.41,0.00039534,120]
[379142170,1755161444683,-266.65,0.00039551,2]
[379142171,1755161444695,-4000.0,0.00039568,4]
[379142172,1755161444708,-1032.51402515,0.00039574,2]
[379142173,1755161444720,-5113.41,0.00039589,120]
[379142174,1755161444732,-17399.8303024,0.0003959,4]
[379142175,1755161444743,-150.0,0.00039591,2]
[379142176,1755161444756,-39757.736855,0.000396,2]
[379142177,1755161444768,-212.49220769,0.00039615,2]
[379142178,1755161444781,-180.44385,0.0003962,2]
[379142179,1755161444793,-5799.94343414,0.00039625,4]
[379142180,1755161444806,-4000.0,0.0003964,4]
[379142181,1755161444818,-5113.41,0.00039643,120]
[379142182,1755161444831,-251.71,0.00039654,2]
[379142183,1755161444844,-445.0,0.00039658,4]
[379142184,1755161444856,-297.92152814,0.00039658,2]
[379142185,1755161444869,-500.0,0.00039658,4]
[379142186,1755161444881,-493.0,0.00039658,4]
[379142187,1755161444895,-5799.94343414,0.00039688,4]
[379142188,1755161444908,-5113.41,0.00039698,120]
[379142189,1755161444921,-4000.0,0.00039712,4]
[379142190,1755161444933,-514.66,0.00039726,2]
[379142191,1755161444946,-1079.90811155,0.00039742,2]
[379142192,1755161444959,-150.0,0.00039753,2]
[379142193,1755161444972,-5113.41,0.00039753,120]
[379142194,1755161444984,-233.413808,0.00039782,30]
[379142195,1755161444997,-233.413808,0.00039782,30]
[379142196,1755161445010,-151.0,0.00039782,30]
[379142197,1755161445022,-151.0,0.00039782,30]
[379142198,1755161445037,-151.0,0.00039782,30]
[379142199,1755161445049,-150.0,0.00039783,2]
[379142200,1755161445062,-4000.0,0.00039784,4]
[379142201,1755161445075,-5799.94343414,0.00039798,4]
[379142202,1755161445087,-2500.0,0.00039806,14]
[379142203,1755161445099,-5113.41,0.00039808,120]
[379142204,1755161445114,-150.0,0.00039809,2]
[379142205,1755161445126,-850.4439466,0.00039815,2]
[379142206,1755161445138,-2500.0,0.00039815,14]
[379142207,1755161445150,-161.75804295,0.00039819,13]
[379142208,1755161445162,-213.90722879,0.00039819,2]
[379142209,1755161445175,-2500.0,0.00039824,14]
[379142210,1755161445187,-2500.0,0.00039833,14]
[379142211,1755161445199,-2500.0,0.00039842,14]
[379142212,1755161445211,-150.0,0.00039847,2]
[379142213,1755161445224,-500.0,0.00039847,2]
[379142214,1755161445237,-150.0,0.00039847,2]
[379142215,1755161445251,-151.22142382,0.00039847,2]
[379142216,1755161445264,-152.00299053,0.00039847,2]
[379142217,1755161445277,-500.0,0.00039847,2]
[379142218,1755161445289,-500.0,0.00039847,2]
[379142219,1755161445302,-150.0,0.00039847,2]
[379142220,1755161445314,-158.47627965,0.00039847,2]